fUST/lending_fUST_20240425
["ID","MTS","AMOUNT","RATE_DAILY","PERIOD"]
[323436237,1713985250027,-812.42,0.00041095,120]
[323436238,1713985250053,-812.42,0.00041095,120]
[323436239,1713985250075,-812.42,0.00041095,120]
[323436240,1713985250099,-812.42,0.00041095,120]
[323436241,1713985250121,-812.52466604,0.00041095,120]
[323436242,1713985250146,-310.25652261,0.00041095,120]
[323436243,1713985250169,-6218.49,0.00041095,41]
[323436244,1713985250194,-3500.442017,0.00041553,120]
[323436245,1713985250217,-7836.58887725,0.00041778,120]
[323436246,1713985250240,-158.25286324,0.00041778,68]
[323436247,1713985250263,-1000.0,0.000418,30]
[323436248,1713985250287,-200.0,0.00041983,120]
[323436249,1713985250312,-444.02792473,0.00042,120]
[323436250,1713985250336,-1000.0,0.00042,120]
[323436251,1713985250358,-1636.32459727,0.000424,120]
[323436252,1713985250381,-6218.49,0.00042465,44]
[323436253,1713985250404,-629.62943843,0.000425,120]
[323436254,1713985250429,-1175.89261732,0.00042798,46]
[323436255,1713985250458,-872.61585071,0.000428,60]
[323436256,1713985250483,-500.0,0.000429,42]
[323436257,1713985250507,-500.0,0.000429,42]
[323436258,1713985250530,-500.0,0.000429,42]
[323436259,1713985250560,-500.0,0.000429,42]
[323436260,1713985250583,-500.0,0.000429,42]
[323436261,1713985250607,-200.0,0.00042996,120]
[323436262,1713985250633,-200.0,0.00043582,120]
[323436263,1713985250658,-20000.0,0.00043778,120]
[323436264,1713985250682,-6218.49,0.00043835,47]
[323436265,1713985250705,-2505.28195849,0.00043835,120]
[323436266,1713985256049,243.86714233,0.0003,30]
[323436267,1713985256321,1083.79342745,0.00035,30]
[323436268,1713985259964,500.0,0.00039999,31]
[323436269,1713985260000,500.0,0.00039999,31]
[323436270,1713985260052,500.0,0.00039999,31]
[323436271,1713985260103,500.0,0.00039999,31]
[323436272,1713985260140,500.0,0.00039999,31]
[323436273,1713985260327,500.0,0.00039999,31]
[323436274,1713985260438,500.0,0.00039999,31]
[323436275,1713985260491,565.0,0.00039999,31]
[323436276,1713985260581,500.0,0.00039999,31]
[323436277,1713985260697,500.0,0.00039999,31]
[323436278,1713985260785,500.0,0.00039999,31]
[323436280,1713985292931,1630.2,0.00028635,120]
[323436282,1713985408692,309.81411154,0.0001046,2]
[323436283,1713985417839,309.81411154,0.0001046,2]
[323436284,1713985426160,354.84963956,0.00010459,2]
[323436285,1713985428536,16603.09204978,0.00010497,2]
[323436286,1713985620568,354.84963956,0.00010279,2]
[323436287,1713985629109,354.84963956,0.00010279,2]
[323436288,1713985637774,313.70442643,0.00010278,2]
[323436289,1713985645633,313.70442643,0.00010278,2]
[323436290,1713985654055,154.92253873,0.00010277,2]
[323436291,1713985662868,154.92253873,0.00010277,2]
[323436292,1713985670757,354.84963956,0.00010276,2]
[323436293,1713985678870,354.84963956,0.00010276,2]
[323436294,1713985686773,354.84963956,0.00010276,2]
[323436295,1713985691382,154.92253873,0.00010276,2]
[323436296,1713985694948,313.70442643,0.00010275,2]
[323436297,1713985702782,313.70442643,0.00010275,2]
[323436298,1713985707253,155.33398388,0.00010276,2]
[323436299,1713985710969,154.92253873,0.00010274,2]
[323436300,1713985718850,154.92253873,0.00010274,2]
[323436301,1713985728689,354.84963956,0.00010273,2]
[323436305,1713985830842,200.0,0.0002843,120]
[323436337,1713985832548,-154.92253873,0.00010371,2]
[323436339,1713985832557,-135.19059874,0.00010371,2]
[323436341,1713985832568,-19.73193999,0.00010371,2]
[323436344,1713985832578,-158.7818877,0.00010372,2]
[323436346,1713985832587,-354.84963956,0.00010373,2]
[323436348,1713985832597,-300.0,0.00010495,2]
[323436349,1713985832606,-300.0,0.00010495,2]
[323436351,1713985832617,-16016.65232062,0.00010496,2]
[323436353,1713985832626,-27840.90795022,0.00010497,2]
[323436355,1713985832635,-309.67484219,0.00010497,2]
[323436357,1713985832646,-160.77330385,0.00010497,2]
[323436359,1713985832655,-206.09782636,0.00010595,2]
[323436361,1713985832664,-212.0994584,0.00010595,2]
[323436363,1713985832673,-459.7805489,0.00010595,2]
[323436365,1713985832682,-1490.54643083,0.00010595,2]
[323436367,1713985832693,-1620.53461599,0.00010595,2]
[323436369,1713985832706,-20207.36733772,0.00010596,2]
[323436371,1713985832718,-907.44942013,0.00010596,2]
[323436373,1713985832728,-305.51476709,0.00010596,2]
[323436484,1713985838527,-6395.99999998,0.00010596,2]
[323436486,1713985838539,-192261.50000002,0.00010596,2]
[323436694,1713985840706,-6362.95181142,0.00010596,2]
[323436696,1713985840719,-469.5,0.00010596,2]
[323437124,1713985845456,-167.62975277,0.00010594,2]
[323437126,1713985845467,-354.84963956,0.00010595,2]
[323437128,1713985845476,-7868.0386131,0.00010595,2]
[323437130,1713985845485,-158.7818877,0.00010595,2]
[323437132,1713985845495,-3481.54065986,0.00010595,2]
[323437135,1713985845513,-12535.11166076,0.00010595,2]
[323437137,1713985845523,-12853.86695644,0.00010596,2]
[323437274,1713985846614,-12794.80000001,0.00010596,2]
[323437535,1713985891580,14686.13777939,9.86e-05,2]
[323437536,1713985891619,10213.86222061,9.86e-05,2]
[323437554,1713986071399,200.0,0.00028162,120]
[323437568,1713986367245,570.4305627,9.571e-05,2]
[323437588,1713986898570,-154.92253873,0.00010346,2]
[323437589,1713986898597,-158.7818877,0.00010347,2]
[323437590,1713986898623,-154.92253873,0.00010348,2]
[323437591,1713986898649,-354.84963956,0.00010349,2]
[323437592,1713986898676,-362.06078861,0.0001035,2]
[323437593,1713986898701,-159.12676125,0.00010352,2]
[323437594,1713986898726,-159.12676125,0.00010425,2]
[323437595,1713986898752,-241.10261081,0.00010494,2]
[323437596,1713986898779,-216.29792062,0.00010494,2]
[323437597,1713986898805,-290.54748868,0.00010494,2]
[323437598,1713986898830,-159.12676125,0.00010497,2]
[323437599,1713986898856,-300.0,0.00010592,2]
[323437600,1713986898880,-300.0,0.00010592,2]
[323437601,1713986898903,-16016.65232062,0.00010593,2]
[323437602,1713986898932,-313.92290819,0.00010594,2]
[323437603,1713986898957,-309.6903097,0.00010594,2]
[323437604,1713986898981,-155.35508982,0.00010594,2]
[323437605,1713986899005,-574.14590156,0.00010594,2]
[323437606,1713986899030,-225.98136746,0.00010594,2]
[323437607,1713986899054,-468.51779384,0.00010594,2]
[323437608,1713986899076,-155.02118887,0.00010594,2]
[323437609,1713986899100,-616.46164798,0.00010594,2]
[323437610,1713986899122,-232.73126155,0.00010594,2]
[323437611,1713986899157,-300.1030459,0.00010594,2]
[323437612,1713986899183,-155.67711311,0.00010594,2]
[323437613,1713986899208,-154.92253873,0.00010594,2]
[323437614,1713986899235,-156.83832376,0.00010595,2]
[323437615,1713986899261,-302.95009137,0.00010595,2]
[323437616,1713986899292,-2118.16340035,0.00010596,2]
[323437617,1713986935797,861.6726824,9.664e-05,2]
[323437922,1713987038751,-187.31617372,0.00010236,2]
[323437923,1713987038760,-362.06078861,0.00010236,2]
[323437924,1713987038769,-154.92253873,0.00010237,2]
[323437925,1713987038779,-203.87805929,0.00010237,2]
[323437926,1713987038788,-221.16970429,0.00010238,2]
[323437946,1713987040828,-298.88330852,0.00010238,2]
[323437948,1713987040838,-154.92253873,0.00010238,2]
[323437950,1713987040847,-154.92253873,0.00010238,2]
[323437952,1713987040856,-154.92253873,0.00010239,2]
[323437953,1713987040866,-154.92253873,0.00010239,2]
[323437955,1713987040875,-564.5969546,0.00010239,2]
[323437957,1713987040888,-154.92253873,0.0001024,2]
[323437959,1713987040897,-154.92253873,0.0001024,2]
[323437961,1713987040906,-354.84963956,0.00010241,2]
[323437963,1713987040916,-472.01022916,0.00010242,2]
[323437965,1713987040925,-176.7437703,0.00010243,2]
[323437967,1713987040934,-918.6272854,0.00010252,2]
[323437969,1713987040943,-18383.39528387,0.00010592,2]
[323437971,1713987040956,-3718.25941909,0.00010592,2]
[323437972,1713987040967,-10890.00176,0.00010592,2]
[323437974,1713987040978,-12822.74342496,0.00010592,2]
[323438037,1713987043868,-988.53139127,0.00010592,2]
[323438241,1713987876879,425.0,0.000225,30]
[323438242,1713988040436,1919.44645361,0.0001,2]
[323438284,1713988231838,-808.5884465,0.00010199,2]
[323438286,1713988231847,-119.32427294,0.000102,2]
[323438386,1713988237909,-1420.69805246,0.00010198,2]
[323438387,1713988237966,-469.66523588,0.00010198,2]
[323438388,1713988237976,-235.52536662,0.000102,2]
[323438389,1713988237985,-472.01022916,0.00010237,2]
[323438391,1713988237995,-300.0,0.0001049,2]
[323438393,1713988238006,-8163.01250024,0.00010491,2]
[323438415,1713988240171,-21678.72155098,0.00010491,2]
[323438475,1713989088089,5434.58808068,9.466e-05,2]
[323438476,1713989088114,13793.56348352,9.466e-05,2]
[323438504,1713989432078,-152.62623642,0.00010289,2]
[323438505,1713989432087,-890.91330444,0.00010386,2]
[323438590,1713989438149,-999.4499839,0.00010386,2]
[323438591,1713989438159,-1575.31939472,0.00010387,2]
[323438592,1713989438168,-300.0,0.00010391,2]
[323438593,1713989438177,-300.0,0.00010391,2]
[323438594,1713989438192,-9647.23062138,0.00010392,2]
[323438595,1713989438220,-718.25132778,0.00010392,2]
[323438916,1713989443281,-1154.51821434,0.00010385,2]
[323438986,1713989963648,309.6903097,0.0001,2]
[323438987,1713989983735,154.90705577,0.0001,2]
[323438988,1713989988374,154.90705577,0.0001,2]
[323438989,1713989989256,16092.92827153,0.0001,2]
[323438990,1713989995730,154.90705577,0.0001,2]
[323438991,1713990002372,156.68513062,0.0001,2]
[323438992,1713990007254,16092.92827153,0.0001,2]
[323438993,1713990019918,243.1615534,0.0001,2]
[323438994,1713990021260,16092.92827153,0.0001,2]
[323438996,1713990037263,15300.90731953,0.0001,2]
[323438997,1713990049407,7195.9465368,9.353e-05,2]
[323438999,1713990149339,24900.0,9.297e-05,2]
[323439001,1713990211763,250.0,9.354e-05,2]
[323439002,1713990280674,549.6120096,0.00010042,2]
[323439004,1713990288577,549.6120096,0.00010042,2]
[323439005,1713990297958,549.6120096,0.00010042,2]
[323439006,1713990305850,1057.20199727,0.00010041,2]
[323439007,1713990314946,566.79347945,0.0001004,2]
[323439008,1713990347242,154.90705577,0.00010042,2]
[323439010,1713990356593,154.90705577,0.00010042,2]
[323439011,1713990363139,155.21898476,0.00010041,2]
[323439012,1713990363480,154.90705577,0.00010042,2]
[323439013,1713990377259,154.90705577,0.00010042,2]
[323439014,1713990378604,154.90705577,0.00010042,2]
[323439015,1713990395288,238.37589599,0.00010042,2]
[323439016,1713990398601,154.90705577,0.00010042,2]
[323439017,1713990418629,154.90705577,0.00010042,2]
[323439018,1713990436749,156.29505379,0.00010042,2]
[323439443,1713990632517,-1575.31939472,0.00010124,2]
[323439444,1713990632528,-549.6120096,0.00010125,2]
[323439445,1713990632538,-1057.20199727,0.00010126,2]
[323439446,1713990632548,-1890.36328834,0.00010127,2]
[323439447,1713990632558,-155.21898475,0.00010282,2]
[323439448,1713990632569,-492.55009128,0.00010282,2]
[323439449,1713990632578,-300.0,0.00010368,2]
[323439450,1713990632588,-300.0,0.00010368,2]
[323439451,1713990632598,-59169.7357574,0.00010369,2]
[323439452,1713990632609,-23982.6300677,0.0001037,2]
[323439453,1713990632623,-2028.89952765,0.0001037,2]
[323439454,1713990632642,-1012.08201039,0.0001037,2]
[323439455,1713990634400,5092.92916955,9.287e-05,2]
[323439456,1713990634424,19807.07083045,9.287e-05,2]
[323439511,1713990638336,-471.18385507,0.0001037,2]
[323439700,1713990643495,-286.66475086,0.00010369,2]
[323440267,1713990731268,250.0,9.372e-05,2]
[323440271,1713991109209,3614.2237766,9.268e-05,2]
[323440339,1713991832449,-158.7818877,0.00010063,2]
[323440341,1713991832458,-520.05301281,0.00010064,2]
[323440343,1713991832467,-154.90705577,0.00010064,2]
[323440345,1713991832477,-919.25283669,0.00010064,2]
[323440348,1713991832504,-659.26245177,0.00010064,2]
[323440351,1713991832513,-12.06756538,0.00010065,2]
[323440353,1713991832524,-310.0,0.00010065,2]
[323440355,1713991832537,-39.99322323,0.00010065,2]
[323440357,1713991832550,-354.84963956,0.00010066,2]
[323440359,1713991832560,-191.82344396,0.00010066,2]
[323440361,1713991832572,-12.05461533,0.00010066,2]
[323440363,1713991832580,-520.05301281,0.00010066,2]
[323440365,1713991832590,-394.040073,0.00010067,2]
[323440367,1713991832600,-300.0,0.00010139,2]
[323440369,1713991832608,-300.0,0.00010139,2]
[323440371,1713991832618,-154.90705577,0.0001014,2]
[323440373,1713991832627,-1137.71550116,0.0001014,2]
[323440788,1713991838762,-319.88118119,0.0001014,2]
[323440952,1713991840667,-1057.20199727,0.00010062,2]
[323440954,1713991840676,-468.51779384,0.00010062,2]
[323440956,1713991840686,-432.76660599,0.0001014,2]
[323440958,1713991840695,-16016.65232062,0.0001014,2]
[323440960,1713991840704,-59169.7357574,0.00010141,2]
[323440962,1713991840713,-95322.75230325,0.00010141,2]
[323440965,1713991840727,-7444.42677866,0.00010141,2]
[323441600,1713991846503,-361.81492194,0.0001014,2]
[323441602,1713991846512,-308.50670836,0.0001014,2]
[323441604,1713991846521,-323.78565761,0.0001014,2]
[323441606,1713991846530,-83.90767933,0.00010141,2]
[323448008,1713992083058,5788.06733724,0.0002778,120]
[323448009,1713992182170,6662.5223584,9.027e-05,2]
[323448010,1713992250957,291.94923785,9.027e-05,2]
[323448011,1713992267299,154.90705577,9.027e-05,2]
[323448012,1713992284875,154.90705577,9.027e-05,2]
[323448015,1713992362881,526.42938947,0.0001,2]
[323448016,1713992370319,1394.68761216,0.0001,2]
[323448017,1713992373148,408.93284854,0.0001,2]
[323448018,1713992380796,154.90705577,9.027e-05,2]
[323448019,1713992391798,5399.973,0.0001,2]
[323448020,1713992396792,154.90705577,9.027e-05,2]
[323448021,1713992404296,520.05301281,0.0001,2]
[323448022,1713992411636,308.54338713,0.0001,2]
[323448023,1713992414818,154.90705577,9.027e-05,2]
[323448024,1713992438816,154.90705577,9.027e-05,2]
[323448025,1713992443661,408.93284854,0.0001,2]
[323448026,1713992460290,2999.985,0.0001,2]
[323448027,1713992460810,154.90705577,9.027e-05,2]
[323448028,1713992476832,154.90705577,9.027e-05,2]
[323448029,1713992498818,154.90705577,9.027e-05,2]
[323448030,1713992515168,154.90705577,9.027e-05,2]
[323448031,1713992532819,194.78616118,9.027e-05,2]
[323448032,1713992573806,1057.20199727,0.0001,2]
[323448033,1713992579139,1575.31939472,0.0001,2]
[323448034,1713992660834,604.49475011,0.0001,2]
[323448035,1713992677170,154.90705577,0.0001,2]
[323448038,1713992764680,154.90705577,0.0001,2]
[323448070,1713993032647,-2999.985,0.00010031,2]
[323448072,1713993032656,-1878.39217822,0.00010032,2]
[323448074,1713993032665,-300.0,0.00010033,2]
[323448076,1713993032675,-300.0,0.00010033,2]
[323448078,1713993032684,-41719.63219246,0.00010034,2]
[323448080,1713993032695,-2724.36780754,0.00010034,2]
[323448081,1713993032704,-315.2320584,0.00010035,2]
[323448083,1713993032714,-173.19355555,0.00010036,2]
[323448085,1713993032724,-526.3956349,0.00010036,2]
[323448087,1713993032733,-373.69129022,0.00010036,2]
[323448089,1713993032743,-173.77027809,0.00010036,2]
[323448091,1713993032752,-408.00397818,0.00010036,2]
[323448092,1713993032760,-891.67966993,0.00010036,2]
[323448093,1713993032770,-155.28643161,0.00010036,2]
[323448094,1713993032779,-155.33015136,0.00010037,2]
[323448095,1713993032788,-420.80118038,0.00010037,2]
[323448096,1713993032797,-136.45534917,0.00010126,2]
[323448097,1713993032809,-667.81593957,0.00010126,2]
[323448179,1713993038694,-79.65000996,0.00010126,2]
[323448181,1713993038704,-39139.74634347,0.00010134,2]
[323449516,1713993885307,186.16529809,0.0001,2]
[323449517,1713993896585,2624.41567605,0.0001,2]
[323449518,1713993905659,7868.0386131,0.0001,2]
[323449519,1713993911034,206.09782636,0.0001,2]
[323449520,1713993926522,549.6120096,0.0001,2]
[323449521,1713994142878,157.50163005,9.931e-05,2]
[323449522,1713994148165,157.50163004,9.966e-05,2]
[323449554,1713994232186,-157.50163004,0.0001,2]
[323449555,1713994232196,-755.74439733,0.00010031,2]
[323450259,1713994242993,-807.24778767,0.00010031,2]
[323450261,1713994243003,-300.0,0.00010031,2]
[323450264,1713994243014,-300.0,0.00010031,2]
[323450266,1713994243026,-373.77499211,0.00010032,2]
[323450268,1713994243036,-459.7805489,0.00010032,2]
[323450270,1713994243048,-186.16529809,0.00010032,2]
[323450272,1713994243059,-2624.41567605,0.00010032,2]
[323450274,1713994243069,-1358.71569718,0.00010032,2]
[323450881,1713994249624,677.48768534,9.966e-05,2]
[323453281,1713994636739,155.06393323,9.908e-05,2]
[323453282,1713994756747,549.6120096,0.0001,2]
[323453283,1713994764721,1578.51528846,0.0001,2]
[323453284,1713994773271,7868.0386131,0.0001,2]
[323453287,1713995168657,1000.0,9.878e-05,2]
[323453288,1713995168718,1000.0,9.993e-05,2]
[323453289,1713995229475,1000.0,9.922e-05,2]
[323453325,1713995432374,-559.45431183,0.00010028,2]
[323453326,1713995432432,-1003.53787317,0.00010028,2]
[323453327,1713995432443,-44.70712683,0.00010029,2]
[323453328,1713995432454,-427.30310233,0.00010029,2]
[323453329,1713995432463,-1000.0,0.0001003,2]
[323453330,1713995432473,-300.0,0.00010031,2]
[323453331,1713995432483,-300.0,0.00010031,2]
[323453333,1713995432492,-312.06397659,0.00010032,2]
[323453335,1713995432503,-683.46745544,0.00010032,2]
[323453336,1713995432512,-313.92290819,0.00010032,2]
[323453337,1713995432522,-6509.32291592,0.00010032,2]
[323453338,1713995432532,-309.69308901,0.00010032,2]
[323453339,1713995432543,-2471.80585963,0.00010033,2]
[323453341,1713995432555,-24675.27234583,0.00010034,2]
[323453379,1713995438315,-19768.72765417,0.00010034,2]
[323453382,1713995438328,-73.85388483,0.00010035,2]
[323455354,1713995611930,155.06393323,9.935e-05,2]
[323455358,1713996142009,300.0,9.985e-05,2]
[323455359,1713996236603,207.92306846,0.0001,2]
[323455360,1713996261337,1562.992185,0.0001,2]
[323455361,1713996267786,808.5884465,0.0001,2]
[323455362,1713996271286,16087.28363851,9.985e-05,2]
[323455363,1713996291158,14233.49006608,9.985e-05,2]
[323455364,1713996330811,284.85142799,9.985e-05,2]
[323455365,1713996350785,284.85142799,9.985e-05,2]
[323455366,1713996353439,179.1960508,9.985e-05,2]
[323455369,1713996370780,177.81025533,9.985e-05,2]
[323455370,1713996371379,239.80654079,9.985e-05,2]
[323455416,1713996632222,-1562.992185,0.00010015,2]
[323455417,1713996632232,-556.2463495,0.00010016,2]
[323455613,1713996842716,44444.0,9.932e-05,2]
[323455614,1713996852937,155.91423434,9.934e-05,2]
[323455615,1713996867926,155.91423434,9.934e-05,2]
[323455616,1713996882933,155.91423435,9.934e-05,2]
[323455618,1713997167978,596.92086252,0.0001,2]
[323455619,1713997177519,1562.992185,0.0001,2]
[323455620,1713997205226,521.62660451,0.0001,2]
[323455621,1713997205949,162.04590632,0.0001,2]
[323455625,1713997397350,1401.61605417,9.939e-05,2]
[323455626,1713997399079,1401.61605417,9.963e-05,2]
[323455627,1713997401092,1401.61605417,9.986e-05,2]
[323455628,1713997596909,154.90705577,0.0001,2]
[323455629,1713997613064,1562.992185,0.0001,2]
[323455630,1713997614752,520.05301281,0.0001,2]
[323455631,1713997727579,154.90705577,0.0001,2]
[323455632,1713997742079,1562.992185,0.0001,2]
[323455633,1713997791548,560.6464217,9.939e-05,2]
[323455634,1713997793520,560.64642166,9.963e-05,2]
[323455635,1713997795576,560.64642166,9.986e-05,2]
[323455636,1713997810698,29281.15628954,9.938e-05,2]
[323455673,1713997832520,-1562.992185,0.00010003,2]
[323455675,1713997832529,-472.04642985,0.00010005,2]
[323455677,1713997832540,-151.82083052,0.00010005,2]
[323455679,1713997832550,-560.64642166,0.0001001,2]
[323455681,1713997832559,-300.0,0.00010028,2]
[323455683,1713997832568,-283.4494848,0.00010029,2]
[323455685,1713997832577,-356.40387446,0.00010029,2]
[323455687,1713997832586,-182.22634354,0.00010029,2]
[323455689,1713997832598,-339.09679811,0.00010029,2]
[323455691,1713997832607,-193.37781206,0.00010029,2]
[323455693,1713997832617,-519.85393498,0.00010029,2]
[323455695,1713997832626,-155.4112424,0.00010029,2]
[323455697,1713997832635,-564.5969546,0.0001003,2]
[323455699,1713997832644,-8548.72899353,0.00010031,2]
[323455701,1713997832657,-44194.29704882,0.00010031,2]
[323455703,1713997832666,-408.93284854,0.00010032,2]
[323455705,1713997832676,-207.85032377,0.00010032,2]
[323455707,1713997832685,-455.90304469,0.00010032,2]
[323455708,1713997832695,-526.42938947,0.00010032,2]
[323455710,1713997832704,-2452.2553478,0.00010032,2]
[323455711,1713997832714,-1056.82567173,0.00010032,2]
[323455713,1713997832723,-206.02600307,0.00010032,2]
[323455715,1713997832733,-560.64642166,0.00010033,2]
[323455716,1713997832743,-308.54338713,0.00010033,2]
[323455717,1713997832752,-309.6903097,0.00010033,2]
[323455718,1713997832762,-5672.5968756,0.00010038,2]
[323455748,1713997838448,-3048.36171177,0.00010002,2]
[323455749,1713997838458,-474.86339455,0.00010002,2]
[323455751,1713997838467,-3915.80742268,0.00010038,2]
[323455756,1713997838502,-12862.0,0.00010038,2]
[323456032,1713998714053,-3048.36171177,0.00010001,2]
[323456033,1713998714077,-1562.992185,0.00010002,2]
[323456034,1713998714101,-703.84196169,0.00010003,2]
[323456035,1713998714125,-252.59400697,0.00010035,2]
[323456036,1713998714148,-173.22582113,0.00010035,2]
[323456037,1713998714171,-1016.53700423,0.00010036,2]
[323456038,1713998714194,-242.00608568,0.00010037,2]
[323456039,1713998714217,-595.05242865,0.00010133,2]
[323456040,1713998714240,-181.61755897,0.00010137,2]
[323456041,1713998714263,-154.90705577,0.00010137,2]
[323456042,1713998714286,-4668.86418014,0.00010137,2]
[323456043,1713998816858,44444.0,9.937e-05,2]
[323456064,1713999032651,-1480.0,0.00010116,2]
[323456067,1713999032705,-500.0,0.00010116,2]
[323456218,1713999071986,200.0,0.000264,120]
[323456219,1713999072021,75.0,0.000264,120]
[323456222,1713999326731,172.70528947,9.995e-05,2]
[323456223,1713999390759,154.8915759,9.995e-05,2]
[323456224,1713999406752,206.06537616,9.995e-05,2]
[323456225,1713999446384,2399.0,0.00025192,60]
[323456226,1713999492805,1272.8490852,9.105e-05,2]
[323456227,1713999756874,5000.0,0.00025192,60]
[323456228,1713999834282,327.84255058,0.000265,120]
[323456259,1714000231826,-883.9212987,0.00010023,2]
[323456260,1714000231836,-539.92860326,0.00010023,2]
[323456262,1714000231845,-1562.992185,0.00010024,2]
[323456265,1714000231862,-154.86062544,0.00010024,2]
[323456268,1714000231879,-154.86062544,0.00010024,2]
[323456269,1714000231889,-1878.39217822,0.00010025,2]
[323456270,1714000231899,-977.94969331,0.00010025,2]
[323456271,1714000231908,-300.0,0.00010025,2]
[323456272,1714000231919,-703.84196169,0.00010026,2]
[323456273,1714000231929,-3048.36171177,0.00010026,2]
[323456274,1714000231939,-154.86062544,0.00010026,2]
[323456275,1714000231950,-1622.59636576,0.00010027,2]
[323456276,1714000231959,-1678.96711435,0.000101,2]
[323456277,1714000231969,-154.8915759,0.00010102,2]
[323456278,1714000231979,-154.89463122,0.00010113,2]
[323456279,1714000231988,-154.8767742,0.00010113,2]
[323456280,1714000231998,-808.46399951,0.00010113,2]
[323456281,1714000232007,-162.02240911,0.00010113,2]
[323456282,1714000232016,-154.89846529,0.00010114,2]
[323456283,1714000232026,-42179.03745055,0.00010115,2]
[323456613,1714000245959,-2189.08636994,0.00010115,2]
[323456617,1714000289082,200.0,0.000252,77]
[323456618,1714000312301,468.9441929,0.00025192,60]
[323456619,1714000384117,11204.67200303,0.00025099,89]
[323456620,1714001402843,216.0,0.00015,14]
[323456621,1714001416615,812.2545729,0.0001,14]
[323456647,1714001431987,-977.94969331,0.0001004,2]
[323456648,1714001431996,-59169.7357574,0.00010041,2]
[323456650,1714001432006,-703.84196169,0.00010042,2]
[323456652,1714001432017,-1562.992185,0.00010042,2]
[323456654,1714001432027,-3048.36171177,0.00010043,2]
[323456656,1714001432037,-1081.73091051,0.00010044,2]
[323456657,1714001432046,-157.79100369,0.00010044,2]
[323456658,1714001432054,-212.0994584,0.00010044,2]
[323456659,1714001432063,-300.0,0.00010044,2]
[323456660,1714001432074,-300.0,0.00010044,2]
[323456661,1714001432085,-16016.65232062,0.00010045,2]
[323456662,1714001432095,-587.0,0.000101,2]
[323456663,1714001432105,-283.38557575,0.00010135,2]
[323456664,1714001432115,-1056.82567173,0.00010135,2]
[323456665,1714001432125,-362.01061268,0.00010136,2]
[323456666,1714001432134,-474.41395909,0.00010137,2]
[323456667,1714001432145,-288.9159876,0.00010139,2]
[323456668,1714001432156,-280.72711338,0.00010139,2]
[323456669,1714001432165,-407.61230983,0.00010139,2]
[323456670,1714001432174,-1890.36328834,0.00010139,2]
[323456671,1714001432183,-203.80378127,0.00010139,2]
[323456672,1714001432193,-319.47526681,0.0001014,2]
[323456673,1714001432202,-155.02118887,0.00010167,2]
[323456674,1714001432211,-232.73126155,0.00010167,2]
[323456675,1714001432220,-300.1030459,0.00010167,2]
[323456676,1714001432230,-302.95009137,0.00010168,2]
[323456677,1714001432239,-155.67711311,0.00010168,2]
[323456678,1714001432250,-616.46164798,0.00010168,2]
[323456679,1714001432260,-1202.39645166,0.00010268,2]
[323456680,1714001432270,-249.04498924,0.00010385,2]
[323456681,1714001432278,-2351.7961,0.000104,2]
[323456682,1714001432287,-309.62655691,0.00010488,2]
[323456683,1714001432296,-156.83832376,0.00010488,2]
[323456684,1714001432306,-177.77152538,0.00010488,2]
[323456685,1714001432317,-539.29064264,0.00010488,2]
[323456686,1714001432326,-154.92306399,0.00010488,2]
[323456687,1714001432335,-181.22021635,0.00010489,2]
[323456688,1714001432345,-1877.51564794,0.00010489,2]
[323456689,1714001432356,-267.64801224,0.0001049,2]
[323456690,1714001432365,-2587.76784421,0.0001049,2]
[323456691,1714001432375,-411.19573791,0.0001049,2]
[323456692,1714001432384,-206.06744026,0.00010491,2]
[323456693,1714001432394,-3319.44344027,0.00010493,2]
[323456694,1714001432403,-155.23403882,0.0001059,2]
[323456695,1714001432412,-158.6245065,0.00010591,2]
[323456696,1714001432422,-200.77286391,0.00010594,2]
[323456697,1714001432433,-203.54323971,0.00010594,2]
[323456698,1714001432442,-213.77092791,0.00010594,2]
[323456699,1714001432454,-301.07832754,0.00010594,2]
[323456700,1714001432464,-309.67484219,0.00010594,2]
[323456701,1714001432473,-240.5177946,0.00010594,2]